bitfinex-derivatives/quotes_BTCF0:USTF0_20250405
["timestamp","ask_amount","ask_price","bid_price","bid_amount"]
[1743835609981,0.71141087,83401.0,83400.0,0.10906957]
[1743835611480,0.88973892,83401.0,83400.0,0.10906957]
[1743835618783,0.85723892,83401.0,83400.0,0.10906957]
[1743835619179,0.85723892,83401.0,83400.0,0.10982957]
[1743835619587,0.85723892,83401.0,83400.0,0.10906957]
[1743835619885,0.88793892,83401.0,83400.0,0.10906957]
[1743835620887,0.70961087,83401.0,83400.0,0.10906957]
[1743835626588,0.199,83398.0,83366.0,0.3608]
[1743835626891,0.071991,83367.0,83366.0,0.00068]
[1743835627291,0.433471,83367.0,83366.0,0.00068]
[1743835627786,0.464271,83367.0,83366.0,0.00868]
[1743835628493,0.465271,83367.0,83366.0,0.00868]
[1743835628690,0.665271,83367.0,83366.0,0.00868]
[1743835629183,0.67735802,83367.0,83366.0,0.00868]
[1743835629486,0.67835802,83367.0,83366.0,0.00268]
[1743835629694,0.70855802,83367.0,83366.0,0.01167315]
[1743835630197,0.635471,83367.0,83366.0,0.01167315]
[1743835630399,0.635471,83367.0,83366.0,0.00967315]
[1743835630694,0.305271,83367.0,83366.0,0.00967315]
[1743835631094,0.338071,83367.0,83366.0,0.00967315]
[1743835632597,0.274671,83367.0,83366.0,0.00899315]
[1743835632785,0.0719953,83362.0,83361.0,0.032]
[1743835633095,0.0727553,83362.0,83361.0,0.03276]
[1743835633595,0.2727553,83362.0,83361.0,0.03276]
[1743835634394,0.2747553,83362.0,83361.0,0.03276]
[1743835635392,0.2747553,83362.0,83361.0,0.1047562]
[1743835636291,0.2747553,83362.0,83361.0,0.0419638]
[1743835637090,0.2747553,83362.0,83361.0,0.11396]
[1743835637497,0.2747553,83362.0,83361.0,0.0419638]
[1743835638805,0.3370553,83362.0,83361.0,0.0412038]
[1743835639300,0.6978553,83362.0,83361.0,0.0092038]
[1743835639505,0.6978553,83362.0,83358.0,0.0308]
[1743835639506,0.0719979,83359.0,83358.0,0.0308]
[1743835639704,0.0727579,83359.0,83358.0,0.0308]
[1743835639905,0.1046579,83359.0,83358.0,0.0308]
[1743835640205,0.1356579,83359.0,83358.0,0.0308]
[1743835640605,0.3356579,83359.0,83358.0,0.0308]
[1743835640804,0.3366579,83359.0,83358.0,0.0308]
[1743835641010,0.3376579,83359.0,83358.0,0.0308]
[1743835643118,0.3066579,83359.0,83358.0,0.0308]
[1743835643306,0.3066579,83359.0,83358.0,0.00964335]
[1743835643507,0.3370579,83359.0,83358.0,0.00964335]
[1743835643712,0.3370579,83359.0,83358.0,0.00896335]
[1743835643910,0.0719988,83358.0,83357.0,0.0327]
[1743835644207,0.0726788,83358.0,83357.0,0.03338]
[1743835644510,0.1351788,83358.0,83357.0,0.03338]
[1743835645310,0.1039788,83358.0,83357.0,0.03338]
[1743835645506,0.2726788,83358.0,83357.0,0.03338]
[1743835645705,0.2736788,83358.0,83357.0,0.03338]
[1743835646711,0.2736788,83358.0,83357.0,0.06658]
[1743835646914,0.2746788,83358.0,83357.0,0.06658]
[1743835647512,0.0720031,83353.0,83349.0,0.6838061]
[1743835647714,0.0726831,83353.0,83349.0,0.6844061]
[1743835647914,0.0720057,83350.0,83349.0,0.756412]
[1743835648109,0.0727657,83350.0,83349.0,0.6844059]
[1743835648511,0.07289629,83350.0,83349.0,0.6124]
[1743835650308,0.07289629,83350.0,83349.0,0.6134]
[1743835650508,0.07289629,83350.0,83349.0,0.6144]
[1743835650813,0.07289629,83350.0,83349.0,0.7092]
[1743835651014,0.07289629,83350.0,83349.0,0.7812066]
[1743835651709,0.07289629,83350.0,83349.0,0.78998449]
[1743835654116,0.00089059,83350.0,83349.0,0.78998449]
[1743835654419,0.00013059,83350.0,83349.0,0.78998449]
[1743835654916,0.07213629,83350.0,83349.0,0.78998449]
[1743835655714,0.07289629,83350.0,83349.0,0.78998449]
[1743835656107,0.07281629,83350.0,83349.0,0.78998449]
[1743835657617,0.13731629,83350.0,83349.0,0.78998449]
[1743835663519,0.13731629,83350.0,83349.0,0.17818449]
[1743835664615,0.00081059,83350.0,83349.0,0.17818449]
[1743835665119,0.00081059,83350.0,83349.0,0.28605511]
[1743835665319,0.00013059,83350.0,83349.0,0.28605511]
[1743835665522,0.00089059,83350.0,83349.0,0.28605511]
[1743835665712,0.07289629,83350.0,83349.0,0.28605511]
[1743835668825,0.07213629,83350.0,83349.0,0.28605511]
[1743835669014,0.07213629,83350.0,83349.0,0.23405511]
[1743835669210,0.07281629,83350.0,83349.0,0.28597511]
[1743835670219,0.07281629,83350.0,83349.0,0.28689511]
[1743835670423,0.13531629,83350.0,83349.0,0.28689511]
[1743835670826,0.13531629,83350.0,83349.0,0.25599511]
[1743835671828,0.13531629,83350.0,83349.0,0.20012449]
[1743835672026,0.13531629,83350.0,83349.0,0.08338449]
[1743835672532,0.13531629,83350.0,83349.0,0.11388449]
[1743835680332,0.13531629,83350.0,83349.0,0.01137789]
[1743835681333,0.13531629,83350.0,83349.0,0.08338449]
[1743835682534,0.06331059,83350.0,83349.0,0.08338449]
[1743835682733,0.06331059,83350.0,83349.0,0.11478449]
[1743835683037,0.06263059,83350.0,83349.0,0.20097066]
[1743835683226,0.13531629,83350.0,83349.0,0.20097066]
[1743835683635,0.06331059,83350.0,83349.0,0.20097066]
[1743835683833,0.06263059,83350.0,83349.0,0.23157066]
[1743835684032,0.2134478,83361.0,83355.0,0.0360006]
[1743835684237,0.2141278,83361.0,83360.0,0.4327971]
[1743835684438,0.2141278,83361.0,83360.0,0.54304327]
[1743835684637,0.2141278,83361.0,83360.0,0.60394327]
[1743835685133,0.0327,83365.0,83364.0,0.0719936]
[1743835685333,0.0327,83365.0,83364.0,0.12855977]
[1743835685637,0.065,83365.0,83364.0,0.19145977]
[1743835685827,0.06576,83365.0,83364.0,0.19145977]
[1743835686028,0.06576,83365.0,83364.0,0.55225977]
[1743835686229,0.1377528,83365.0,83364.0,0.55225977]
[1743835686528,0.066,83365.0,83364.0,0.55225977]
[1743835686943,0.06664,83365.0,83364.0,0.55225977]
[1743835687131,0.066,83365.0,83364.0,0.55225977]
[1743835688140,0.06768,83365.0,83364.0,0.52165977]
[1743835688330,0.06768,83365.0,83364.0,0.4657736]
[1743835688730,0.067,83365.0,83364.0,0.4657736]
[1743835689039,0.06776,83365.0,83364.0,0.4657736]
[1743835689228,0.06776,83365.0,83364.0,0.4971736]
[1743835689429,0.06776,83365.0,83364.0,0.55296301]
[1743835690032,0.00176,83365.0,83364.0,0.55296301]
[1743835690235,0.17283118,83369.0,83368.0,0.0719902]
[1743835690435,0.17375118,83369.0,83368.0,0.0729102]
[1743835690634,0.17375118,83369.0,83368.0,0.1049102]
[1743835691338,0.20795118,83369.0,83368.0,0.1350102]
[1743835691532,0.20795118,83369.0,83368.0,0.1885302]
[1743835692238,0.06632,83369.0,83368.0,0.1885302]
[1743835692628,0.06632,83369.0,83368.0,0.5493302]
[1743835692831,0.0654,83369.0,83368.0,0.5493302]
[1743835693637,0.0654,83369.0,83368.0,0.5173302]
[1743835695436,0.1373893,83369.0,83368.0,0.5173302]
[1743835706648,0.1373893,83369.0,83368.0,0.4872302]
[1743835706838,0.1383093,83369.0,83368.0,0.4872302]
[1743835707038,0.1373893,83369.0,83368.0,0.4872302]
[1743835708842,0.1373893,83369.0,83368.0,0.5201302]
[1743835709142,0.1373893,83369.0,83368.0,0.1593302]
[1743835709347,0.1373893,83369.0,83368.0,0.5201302]
[1743835709348,0.13834931,83369.0,83368.0,0.5201302]
[1743835709547,0.1373893,83369.0,83368.0,0.5201302]
[1743835711145,0.1373893,83369.0,83368.0,0.4872302]
[1743835712049,0.1373893,83369.0,83368.0,0.1264302]
[1743835712249,0.1383093,83369.0,83368.0,0.4872302]
[1743835712449,0.1373893,83369.0,83368.0,0.4872302]
[1743835714751,0.1373893,83369.0,83368.0,0.4337102]
[1743835714948,0.1373893,83369.0,83368.0,0.4865502]
[1743835715650,0.1373893,83369.0,83368.0,0.4337102]
[1743835715953,0.1363893,83369.0,83368.0,0.4865102]
[1743835716248,0.1353893,83369.0,83368.0,0.4885102]
[1743835716648,0.1353893,83369.0,83368.0,0.4875102]
[1743835717250,0.1353893,83369.0,83368.0,0.4347102]
[1743835717451,0.1353893,83369.0,83368.0,0.4874702]
[1743835718858,0.0634,83369.0,83368.0,0.5206702]
[1743835719154,0.1353893,83369.0,83368.0,0.57654855]
[1743835719856,0.1363093,83369.0,83368.0,0.57654855]
[1743835720056,0.1353893,83369.0,83368.0,0.57654855]
[1743835720961,0.1353893,83369.0,83368.0,0.54334855]
[1743835721951,0.1353893,83369.0,83368.0,0.18254855]
[1743835722157,0.1353893,83369.0,83368.0,0.54334855]
[1743835723066,0.1353893,83369.0,83368.0,0.49058855]
[1743835723267,0.1353893,83369.0,83368.0,0.54322855]
[1743835725159,0.1363093,83369.0,83368.0,0.57332855]
[1743835725359,0.1353893,83369.0,83368.0,0.57332855]
[1743835725668,0.1353893,83369.0,83368.0,0.54322855]
[1743835725868,0.1363093,83369.0,83368.0,0.54322855]
[1743835726363,0.1363093,83369.0,83368.0,0.05779835]
[1743835726570,0.1363093,83369.0,83368.0,0.00192]
[1743835729766,0.3363093,83369.0,83368.0,0.00192]
[1743835736171,0.3363093,83369.0,83368.0,0.0739102]
[1743835736671,0.3363093,83369.0,83368.0,0.1049102]
[1743835739375,0.20092,83369.0,83368.0,0.1049102]
[1743835739677,0.20092,83369.0,83368.0,0.1357102]
[1743835740363,0.0729093,83369.0,83368.0,0.1357102]
[1743835741477,0.0729093,83369.0,83368.0,0.1049102]
[1743835741777,0.1676093,83369.0,83368.0,0.1049102]
[1743835743072,0.1676093,83369.0,83368.0,0.0739102]
[1743835743474,0.1676093,83369.0,83368.0,0.1046102]
[1743835744574,0.1363093,83369.0,83368.0,0.1046102]
[1743835750387,0.1363093,83369.0,83368.0,0.0739102]
[1743835752976,0.1363093,83369.0,83368.0,0.1050102]
[1743835765494,0.27886247,83369.0,83368.0,0.1050102]
[1743835766090,0.27886247,83369.0,83368.0,0.0739102]
[1743835769087,0.1363093,83369.0,83368.0,0.0739102]
[1743835770789,0.1363093,83369.0,83368.0,0.1053102]
[1743835772296,0.1363093,83369.0,83368.0,0.16122451]
[1743835775693,0.1363093,83369.0,83368.0,0.12982451]
[1743835775998,0.1363093,83369.0,83368.0,0.16252451]
[1743835778602,0.1363093,83369.0,83368.0,0.16152451]
[1743835778901,0.1363093,83369.0,83368.0,0.16252451]
[1743835779499,0.1363093,83369.0,83368.0,0.12982451]
[1743835783004,0.1363093,83369.0,83368.0,0.16072451]
[1743835792407,0.06432,83369.0,83368.0,0.16072451]
[1743835792608,0.06432,83369.0,83368.0,0.19082451]
[1743835792904,0.06432,83369.0,83368.0,0.22242451]
[1743835794498,0.1363093,83369.0,83368.0,0.22242451]
[1743835803120,0.0359914,83377.0,83368.0,0.22242451]
[1743835803121,0.035988,83385.0,83369.0,0.0359945]
[1743835803417,0.071979,83381.0,83379.0,0.0719807]
[1743835803711,0.0723798,83380.0,83379.0,0.1579807]
[1743835803916,0.0004,83380.0,83379.0,0.2199807]
[1743835804402,0.0014,83380.0,83379.0,0.2199807]
[1743835804816,0.21335564,83383.0,83382.0,0.0719781]
[1743835805109,0.0001799,83388.0,83387.0,0.0719738]
[1743835805311,0.0001799,83388.0,83387.0,0.55213098]
[1743835805508,0.0719685,83394.0,83391.0,0.0719703]
[1743835805706,0.28616979,83397.0,83395.0,0.0719669]
[1743835805707,0.03,83396.0,83395.0,0.0719669]
[1743835805914,0.03,83396.0,83395.0,0.0731269]
[1743835806111,0.101966,83396.0,83395.0,0.0731269]
[1743835806304,0.03,83396.0,83395.0,0.0731269]
[1743835806508,0.03,83396.0,83395.0,0.11380609]
[1743835807107,0.0622,83396.0,83395.0,0.11380609]
[1743835807319,0.134166,83396.0,83395.0,0.11380609]
[1743835807717,0.135166,83396.0,83395.0,0.11380609]
[1743835811815,0.0632,83396.0,83395.0,0.11380609]
[1743835812015,0.032,83396.0,83395.0,0.47460609]
[1743835813022,0.032,83396.0,83395.0,0.44280609]
[1743835813522,0.134166,83396.0,83395.0,0.44280609]
[1743835814422,0.134166,83396.0,83395.0,0.49424609]
[1743835815022,0.134166,83396.0,83395.0,0.13344609]
[1743835816720,0.134166,83396.0,83395.0,0.16654609]
[1743835821632,0.0622,83396.0,83395.0,0.16654609]
[1743835823131,0.10683375,83402.0,83401.0,0.0719617]
[1743835823330,0.10683375,83402.0,83401.0,0.4340017]
[1743835823530,0.10683375,83402.0,83401.0,0.5276017]
[1743835823732,0.0303,83403.0,83402.0,0.0719608]
[1743835823932,0.0303,83403.0,83402.0,0.1347208]
[1743835825233,0.0001799,83404.0,83403.0,0.07196]
[1743835825531,0.0001799,83404.0,83403.0,0.0732]
[1743835825726,0.0001799,83404.0,83403.0,0.1342]
[1743835826425,0.0011799,83404.0,83403.0,0.1342]
[1743835827518,0.0021799,83404.0,83403.0,0.1342]
[1743835828030,0.033,83411.0,83410.0,0.0719539]
[1743835828231,0.033,83411.0,83410.0,0.4853939]
[1743835828431,0.033,83411.0,83410.0,0.5477939]
[1743835828634,0.0644,83411.0,83410.0,0.5477939]
[1743835829538,0.0654,83411.0,83410.0,0.5477939]
[1743835829739,0.0968,83411.0,83410.0,0.5477939]
[1743835830536,0.0968,83411.0,83410.0,0.5160939]
[1743835830731,0.0978,83411.0,83410.0,0.5160939]
[1743835834539,0.0978,83411.0,83410.0,0.5160139]
[1743835840346,0.0978,83411.0,83410.0,0.1552139]
[1743835840546,0.0978,83411.0,83410.0,0.5160139]
[1743835842546,0.0978,83411.0,83410.0,0.52795079]
[1743835845349,0.0664,83411.0,83410.0,0.52795079]
[1743835845646,0.0664,83411.0,83410.0,0.59105079]
[1743835849449,0.035,83411.0,83410.0,0.59105079]
[1743835851749,0.035,83411.0,83410.0,0.55835079]
[1743835853845,0.035,83411.0,83410.0,1.16991079]
[1743835854644,0.035,83411.0,83410.0,1.2257351]
[1743835855552,0.035,83411.0,83410.0,1.1953351]
[1743835862359,0.1069531,83411.0,83410.0,1.1646351]
[1743835862953,0.035,83411.0,83410.0,1.1646351]
[1743835864259,0.1069531,83411.0,83410.0,1.1646351]
[1743835864466,0.035,83411.0,83410.0,1.1646351]
[1743835864960,0.066,83411.0,83410.0,1.1646351]
[1743835865260,0.066,83411.0,83410.0,0.8038351]
[1743835865456,0.1379531,83411.0,83410.0,1.10137821]
[1743835865663,0.1379531,83411.0,83410.0,1.15245821]
[1743835865856,0.1379531,83411.0,83410.0,0.6847539]
[1743835866057,0.1379531,83411.0,83410.0,0.7357939]
[1743835867367,0.1379531,83411.0,83410.0,0.95151584]
[1743835868355,0.1379531,83411.0,83410.0,0.33995584]
[1743835869659,0.1379531,83411.0,83410.0,0.33991584]
[1743835870961,0.1379531,83411.0,83410.0,0.0731939]
[1743835871154,0.1379531,83411.0,83410.0,0.1241939]
[1743835872558,0.066,83411.0,83410.0,0.1241939]
[1743835873064,0.1379531,83411.0,83410.0,0.11819389]
[1743835873765,0.066,83411.0,83410.0,0.11819389]
[1743835874761,0.066,83411.0,83410.0,0.15079389]
[1743835877171,0.066,83411.0,83410.0,0.20666071]
[1743835878063,0.066,83411.0,83410.0,0.56746071]
[1743835878474,0.066,83411.0,83410.0,0.51159389]
[1743835880468,0.035,83411.0,83410.0,0.56745953]
[1743835880666,0.17402172,83415.0,83414.0,0.0719505]
[1743835880866,0.17402172,83415.0,83414.0,0.48977614]
[1743835881069,0.17402172,83415.0,83414.0,0.55387614]
[1743835881375,0.0001799,83419.0,83418.0,0.071947]
[1743835881571,0.0001799,83419.0,83418.0,0.073107]
[1743835882767,0.0314799,83419.0,83418.0,0.104107]
[1743835883276,0.0324799,83419.0,83418.0,0.104107]
[1743835883874,0.0631799,83419.0,83418.0,0.134507]
[1743835884264,0.0631799,83419.0,83418.0,0.495307]
[1743835885371,0.0324799,83419.0,83418.0,0.495307]
[1743835885676,0.17815794,83434.0,83433.0,0.0719341]
[1743835885970,0.28269114,83434.0,83433.0,0.1228141]
[1743835886271,0.28269114,83434.0,83433.0,0.1239741]
[1743835887079,0.34569114,83434.0,83433.0,0.1544741]
[1743835887576,0.34669114,83434.0,83433.0,0.1544741]
[1743835887978,0.34669114,83434.0,83433.0,0.1239741]
[1743835889888,0.1685332,83434.0,83433.0,0.1239741]
[1743835890079,0.1675332,83434.0,83433.0,0.1239741]
[1743835890579,0.1665332,83434.0,83433.0,0.1239741]
[1743835890780,0.1675332,83434.0,83433.0,0.1541741]
[1743835893385,0.1675332,83434.0,83433.0,0.1874741]
[1743835893680,0.0956,83434.0,83433.0,0.1874741]
[1743835895379,0.00017978,83442.0,83441.0,0.0719272]
[1743835895581,0.07210608,83442.0,83441.0,0.4339272]
[1743835895775,0.07210608,83442.0,83441.0,0.4672272]
[1743835896782,0.07210608,83442.0,83441.0,0.5001272]
[1743835897082,0.07210608,83442.0,83441.0,0.4668272]
[1743835897284,0.13610608,83442.0,83441.0,0.4668272]
[1743835897477,0.13710608,83442.0,83441.0,0.4668272]
[1743835899776,0.13710608,83442.0,83441.0,0.1060272]
[1743835899974,0.13710608,83442.0,83441.0,0.4668272]
[1743835900172,0.13710608,83442.0,83441.0,0.47581561]
[1743835900977,0.13610608,83442.0,83441.0,0.47581561]
[1743835901183,0.13610608,83442.0,83441.0,0.47681561]
[1743835905777,0.0004,83452.0,83451.0,0.0719186]
[1743835905984,0.0723177,83452.0,83451.0,0.05228]
[1743835906181,0.4331177,83452.0,83451.0,0.05232]
[1743835906377,0.4637177,83452.0,83451.0,0.05232]
[1743835906985,0.4955177,83452.0,83451.0,0.05232]
[1743835907186,0.5265177,83452.0,83451.0,0.05232]
[1743835907382,0.5275177,83452.0,83451.0,0.1242386]
[1743835908677,0.5275177,83452.0,83451.0,0.05232]
[1743835909188,0.5275177,83452.0,83451.0,0.0731186]
[1743835909483,0.0719263,83442.0,83441.0,0.00898841]
[1743835909688,0.0719263,83442.0,83441.0,0.00116]
[1743835909889,0.0719324,83435.0,83433.0,0.00017978]
[1743835910086,0.5280332,83434.0,83433.0,0.07211318]
[1743835911484,0.5280332,83434.0,83433.0,0.07511318]
[1743835911679,0.5280332,83434.0,83433.0,0.07935318]
[1743835912185,0.5280332,83434.0,83433.0,0.0852899]
[1743835913085,0.5280332,83434.0,83433.0,0.0822899]
[1743835913691,0.00017978,83442.0,83441.0,0.0719272]
[1743835914084,0.00017978,83442.0,83441.0,0.0730872]
[1743835915093,0.06367978,83442.0,83441.0,0.0740872]
[1743835915292,0.13560608,83442.0,83441.0,0.0740872]
[1743835915792,0.16630608,83442.0,83441.0,0.1047872]
[1743835918892,0.00017978,83442.0,83441.0,0.1369872]
[1743835920193,0.0359562,83459.0,83451.0,0.0719186]
[1743835920495,0.0719154,83455.0,83451.0,0.1240386]
[1743835920698,0.0328,83456.0,83451.0,0.1240386]
[1743835920895,0.1047145,83456.0,83451.0,0.1865386]
[1743835921591,0.0014,83452.0,83451.0,0.1865386]
[1743835923284,0.0004,83452.0,83451.0,0.1865386]
[1743835923490,0.0004,83452.0,83451.0,0.1875386]
[1743835924101,0.0307,83459.0,83458.0,0.0719125]
[1743835924399,0.0316,83459.0,83458.0,0.4699087]
[1743835924596,0.0316,83459.0,83458.0,0.5330087]
[1743835925289,0.07202779,83460.0,83459.0,0.0719117]
[1743835925489,0.07202779,83460.0,83459.0,0.1361717]
[1743835926496,0.10402779,83460.0,83459.0,0.1361717]
[1743835926797,0.13732779,83460.0,83459.0,0.1361717]
[1743835927187,0.13832779,83460.0,83459.0,0.1361717]
[1743835930799,0.13832779,83460.0,83459.0,0.0730717]
[1743835931000,0.13832779,83460.0,83459.0,0.05208]
[1743835931298,0.49912779,83460.0,83459.0,0.00116]
[1743835931499,0.42721649,83460.0,83450.0,0.00017978]
[1743835931800,0.4327186,83451.0,83450.0,0.00017978]
[1743835932002,0.4327186,83451.0,83450.0,0.07209918]
[1743835932196,0.5270186,83451.0,83450.0,0.07325918]
[1743835932393,0.5270186,83451.0,83450.0,0.00133978]
[1743835932900,0.5270186,83451.0,83450.0,0.00017978]
[1743835933099,0.5270186,83451.0,83450.0,0.00137978]
[1743835933999,0.5270186,83451.0,83450.0,0.00017978]
[1743835934197,0.5270186,83451.0,83450.0,0.00217978]
[1743835934498,0.5270186,83451.0,83450.0,0.00341978]
[1743835934699,0.5280186,83451.0,83450.0,0.00141978]
[1743835935299,0.5280186,83451.0,83450.0,0.00017978]
[1743835935996,0.5280186,83451.0,83450.0,0.00133978]
[1743835938904,0.5280186,83451.0,83450.0,0.00017978]
[1743835939099,0.5280186,83451.0,83450.0,0.00133978]
[1743835939604,0.5280186,83451.0,83450.0,0.00017978]
[1743835940195,0.52861861,83451.0,83450.0,0.00017978]
[1743835941099,0.52861861,83451.0,83450.0,0.00133978]
[1743835941306,0.52861861,83451.0,83450.0,0.00017978]
[1743835942095,0.52861861,83451.0,83450.0,0.00137978]
[1743835943406,0.52861861,83451.0,83450.0,0.10419918]
[1743835944404,0.52761861,83451.0,83450.0,0.10419918]
[1743835945498,0.52761861,83451.0,83450.0,0.10299918]
[1743835946106,0.52761861,83451.0,83450.0,0.07209918]
[1743835953610,0.52761861,83451.0,83450.0,0.10529918]
[1743835957412,0.52761861,83451.0,83450.0,0.10645918]
[1743835958601,0.13651861,83451.0,83450.0,0.13715918]
[1743835958801,0.07251861,83451.0,83450.0,0.17005918]
[1743835959297,0.00060001,83451.0,83450.0,0.17005918]
[1743835959510,0.07251861,83451.0,83450.0,0.17005918]
[1743835967018,0.10271861,83451.0,83450.0,0.17005918]
[1743835971422,0.10271861,83451.0,83450.0,0.13715918]
[1743835971722,0.13541861,83451.0,83450.0,0.13715918]
[1743835976039,0.13541861,83451.0,83450.0,0.10645918]
[1743835976437,0.13541861,83451.0,83450.0,0.03453978]
[1743835977046,0.13541861,83451.0,83450.0,0.00133978]
[1743835978541,0.13541861,83451.0,83450.0,0.03333978]
[1743835979542,0.13541861,83451.0,83450.0,0.10525918]
[1743835982427,0.13541861,83451.0,83450.0,0.10625918]
[1743835982833,0.13541861,83451.0,83450.0,0.10725918]
[1743835983452,0.13541861,83451.0,83450.0,0.10625918]
[1743835983744,0.13541861,83451.0,83450.0,0.10725918]
[1743835984345,0.13541861,83451.0,83450.0,0.10625918]
[1743835984542,0.13541861,83451.0,83450.0,0.10725918]
[1743835985842,0.13541861,83451.0,83450.0,0.13855918]
[1743835994737,0.13541861,83451.0,83450.0,0.10725918]
[1743835996047,0.13541861,83451.0,83450.0,0.10625918]
[1743835996248,0.13541861,83451.0,83450.0,0.10725918]
[1743835997449,0.13541861,83451.0,83450.0,0.10625918]
[1743835997744,0.13541861,83451.0,83450.0,0.10725918]
[1743836000248,0.07251861,83451.0,83450.0,0.10725918]
[1743836000446,0.07251861,83451.0,83450.0,0.17105918]
[1743836000652,0.00060001,83451.0,83450.0,0.17005918]
[1743836001146,0.00060001,83451.0,83450.0,0.22602078]
[1743836001339,0.00060001,83451.0,83450.0,0.22702078]
[1743836001534,0.00060001,83451.0,83450.0,0.22602078]
[1743836001742,0.00060001,83451.0,83450.0,0.22702078]
[1743836002547,0.07251861,83451.0,83450.0,0.22702078]
[1743836002939,0.0719186,83451.0,83450.0,0.22702078]
[1743836005742,0.1078733,83456.0,83455.0,0.0719151]
[1743836005943,0.1078733,83456.0,83455.0,0.4327151]
[1743836006150,0.1078733,83456.0,83455.0,0.5509551]
[1743836006540,0.1409733,83456.0,83455.0,0.5509551]
[1743836007146,0.1730733,83456.0,83455.0,0.5509551]
[1743836007549,0.2034733,83456.0,83455.0,0.5509551]
[1743836012450,0.14285953,83457.0,83456.0,0.0719143]
[1743836012655,0.14285953,83457.0,83456.0,0.1349143]
[1743836013654,0.24727293,83457.0,83456.0,0.1349143]
[1743836014356,0.1044134,83457.0,83456.0,0.1349143]
[1743836014546,0.1054134,83457.0,83456.0,0.1349143]
[1743836018361,0.1382134,83457.0,83456.0,0.1349143]
[1743836018860,0.1688134,83457.0,83456.0,0.1349143]
[1743836022460,0.0335,83457.0,83456.0,0.1349143]
[1743836022651,0.001,83457.0,83456.0,0.1349143]
[1743836024063,0.14285953,83459.0,83458.0,0.0719125]
[1743836024363,0.14285953,83459.0,83458.0,0.0730725]
[1743836024563,0.14285953,83459.0,83458.0,0.1356725]
[1743836025058,0.17595953,83459.0,83458.0,0.1356725]
[1743836025459,0.24787123,83459.0,83458.0,0.1356725]
[1743836025662,0.1060117,83459.0,83458.0,0.1356725]
[1743836027761,0.0341,83459.0,83458.0,0.1356725]
[1743836027956,0.001,83459.0,83458.0,0.1356725]
[1743836028969,0.0333,83459.0,83458.0,0.1356725]
[1743836030968,0.066,83459.0,83458.0,0.1356725]
[1743836031864,0.1379117,83459.0,83458.0,0.1356725]
[1743836034483,0.1379117,83459.0,83458.0,0.1863125]
[1743836035574,0.1379117,83459.0,83458.0,0.24221267]
[1743836037574,0.1379117,83459.0,83458.0,0.21041267]
[1743836037977,0.1379117,83459.0,83458.0,0.12897267]
[1743836038273,0.1379117,83459.0,83458.0,0.17961267]
[1743836039074,0.1379117,83459.0,83458.0,0.21181267]
[1743836045379,0.066,83459.0,83458.0,0.21181267]
[1743836048372,0.066,83459.0,83458.0,0.24371267]
[1743836053173,0.001,83459.0,83458.0,0.24371267]
[1743836053978,0.001,83459.0,83458.0,0.45943461]
[1743836054881,0.0337,83459.0,83458.0,0.45943461]
[1743836056685,0.0331,83463.0,83459.0,0.0359555]
[1743836056886,0.0331,83463.0,83462.0,0.0719091]
[1743836057180,0.0331,83463.0,83462.0,0.12896927]
[1743836057386,0.0331,83463.0,83462.0,0.16086927]
[1743836059084,0.1050082,83463.0,83462.0,0.16086927]
[1743836060185,0.1363082,83463.0,83462.0,0.16086927]
[1743836061580,0.0644,83463.0,83462.0,0.16086927]
[1743836062180,0.0644,83463.0,83462.0,0.21150927]
[1743836064787,0.1363082,83463.0,83462.0,0.21150927]
[1743836080000,0.1363082,83463.0,83462.0,0.16086927]
[1743836080302,0.1363082,83463.0,83462.0,0.12896927]
[1743836080596,0.1363082,83463.0,83462.0,0.17960927]
[1743836082804,0.1363082,83463.0,83462.0,0.21030927]
[1743836083502,0.1363082,83463.0,83462.0,0.17960927]
[1743836083998,0.1363082,83463.0,83462.0,0.21030927]
[1743836084803,0.27916773,83463.0,83462.0,0.21030927]
[1743836085407,0.27916773,83463.0,83462.0,0.17960927]
[1743836085897,0.27916773,83463.0,83462.0,0.0518]
[1743836086105,0.27916773,83463.0,83462.0,0.00116]
[1743836086296,0.27916773,83463.0,83462.0,0.0730691]
[1743836086899,0.27916773,83463.0,83462.0,0.00116]
[1743836086900,0.63996773,83463.0,83462.0,0.00116]
[1743836087093,0.0719099,83461.0,83460.0,0.21565475]
[1743836087292,0.4327099,83461.0,83460.0,0.21565475]
[1743836087488,0.6472099,83461.0,83460.0,0.21565475]
[1743836087802,1.0600099,83461.0,83460.0,0.21565475]
[1743836088192,0.9100099,83461.0,83460.0,0.21565475]
[1743836089195,1.1100099,83461.0,83460.0,0.21565475]
[1743836089395,0.0719151,83455.0,83454.0,0.21565475]
[1743836089803,0.1671151,83455.0,83454.0,0.21565475]
[1743836090005,0.1680351,83455.0,83454.0,0.21657475]
[1743836090598,0.3680351,83455.0,83454.0,0.21657475]
[1743836091200,0.7288351,83455.0,83454.0,0.21657475]
[1743836093313,0.3680351,83455.0,83454.0,0.21657475]
[1743836093504,0.7288351,83455.0,83454.0,0.21657475]
[1743836093700,0.7288351,83455.0,83454.0,0.00092]
[1743836093905,0.0719177,83452.0,83451.0,0.0331]
[1743836094108,0.0725977,83452.0,83451.0,0.0331]
[1743836094309,0.4975977,83452.0,83451.0,0.0331]
[1743836095101,0.4975977,83452.0,83451.0,0.0341]
[1743836095507,0.6975977,83452.0,83451.0,0.0341]
[1743836106232,0.6975977,83452.0,83451.0,0.0673]
[1743836106434,0.6975977,83452.0,83451.0,0.06814]
[1743836106827,0.6975977,83452.0,83451.0,0.0673]
[1743836107336,0.6975977,83452.0,83451.0,0.06814]
[1743836107631,0.6975977,83452.0,83451.0,0.0673]
[1743836111537,0.3367977,83452.0,83451.0,0.0673]
[1743836111834,0.3367977,83452.0,83451.0,0.06814]
[1743836111835,0.6975977,83452.0,83451.0,0.06814]
[1743836112137,0.3367977,83452.0,83451.0,0.0673]
[1743836112438,0.6975977,83452.0,83451.0,0.06814]
[1743836112735,0.6975977,83452.0,83451.0,0.0673]
[1743836115538,0.3367977,83452.0,83451.0,0.0673]
[1743836115742,0.6975977,83452.0,83451.0,0.06822]
[1743836116035,0.6975977,83452.0,83451.0,0.0673]
[1743836116238,0.3367977,83452.0,83451.0,0.0673]
[1743836116437,0.6975977,83452.0,83451.0,0.06814]
[1743836116635,0.6975977,83452.0,83451.0,0.0673]
[1743836119344,0.3367977,83452.0,83451.0,0.0673]
[1743836119632,0.6975977,83452.0,83451.0,0.06814]
[1743836119837,0.3367977,83452.0,83451.0,0.0673]
[1743836120036,0.3367977,83452.0,83451.0,0.06814]
[1743836120240,0.6975977,83452.0,83451.0,0.06814]
[1743836120443,0.6975977,83452.0,83451.0,0.0673]
[1743836121542,0.6975977,83452.0,83451.0,0.0341]
[1743836125743,0.6333977,83452.0,83451.0,0.0341]
[1743836125934,0.6333977,83452.0,83451.0,0.0967]